bitfinex/quotes_ETHUSD_20220220
["timestamp","ask_amount","ask_price","bid_price","bid_amount"]
[1645359023077,0.7235942,2639.4,2639.0,0.00178661]
[1645359023276,1.54292916,2639.4,2639.0,0.00178661]
[1645359023476,0.51933496,2639.3,2639.0,0.00178661]
[1645359023678,0.7235942,2639.4,2639.0,0.00178661]
[1645359023679,0.51933496,2639.2,2639.0,0.00178661]
[1645359023877,0.51933496,2639.1,2638.9,2.08183063]
[1645359024079,0.51933496,2639.0,2638.9,2.08183063]
[1645359024480,0.51933496,2639.3,2638.9,2.08183063]
[1645359024682,1.0235942,2639.4,2638.9,2.08183063]
[1645359024683,0.51933496,2639.2,2638.9,2.08183063]
[1645359024932,0.51933496,2639.1,2638.9,2.68183063]
[1645359025142,0.00315757,2639.4,2639.0,1.06997252]
[1645359025334,0.00315757,2639.4,2639.0,2.25937252]
[1645359025530,0.00315757,2639.4,2639.1,1.06997252]
[1645359025933,0.52254693,2639.4,2639.1,1.06997252]
[1645359026131,0.51938936,2639.3,2639.2,1.13805348]
[1645359026332,0.00315757,2639.4,2639.2,1.13805348]
[1645359027331,0.00315757,2639.4,2639.2,12.68805348]
[1645359027538,0.00315757,2639.4,2639.3,12.61946001]
[1645359027737,0.00315757,2639.4,2639.3,2.06946001]
[1645359028785,0.00315757,2639.4,2639.3,2.06974336]
[1645359029185,0.00315757,2639.4,2639.2,1.13980999]
[1645359029979,0.00315757,2639.4,2639.2,1.13805348]
[1645359030181,0.00315757,2639.4,2639.2,1.13981002]
[1645359031184,0.00315757,2639.4,2639.2,1.13805348]
[1645359031481,0.00315757,2639.4,2639.2,1.13984929]
[1645359031681,0.5225419,2639.4,2639.2,1.13984929]
[1645359031881,0.51938433,2639.3,2639.2,1.13984929]
[1645359032082,0.00315757,2639.4,2639.2,2.2102724]
[1645359032282,0.00315757,2639.4,2639.2,1.13805348]
[1645359033727,0.00315757,2639.4,2639.2,1.13984929]
[1645359034026,0.00315757,2639.4,2639.3,1.07066543]
[1645359034428,0.00315757,2639.4,2639.2,1.13984929]
[1645359034829,0.00315757,2639.4,2639.2,1.13805348]
[1645359035026,0.00315757,2639.4,2639.2,1.13984042]
[1645359035427,0.5225419,2639.4,2639.2,1.13984042]
[1645359035633,0.51938433,2639.3,2639.2,1.13984042]
[1645359035828,0.00315757,2639.4,2639.2,2.21077429]
[1645359036027,0.00315757,2639.4,2639.2,1.13805348]
[1645359038677,0.00315757,2639.4,2639.2,1.14024439]
[1645359039478,0.00315757,2639.4,2639.2,1.13805348]
[1645359039679,0.00315757,2639.4,2639.2,14.23561348]
[1645359039928,0.00315757,2639.4,2639.3,2.07107781]
[1645359040125,5.757e-05,2639.4,2639.3,2.07107781]
[1645359040324,5.757e-05,2639.4,2639.3,2.07436695]
[1645359041824,0.00304039,2639.4,2639.3,2.07436695]
[1645359042524,0.00304039,2639.4,2639.3,13.62436695]
[1645359042727,0.52091547,2639.7,2639.6,0.00106725]
[1645359042924,0.00107649,2639.7,2639.6,0.00106725]
[1645359043327,0.00107649,2639.7,2639.6,0.88910058]
[1645359045081,0.00107649,2639.7,2639.6,0.00106725]
[1645359046479,0.00107649,2639.7,2639.6,1.14145634]
[1645359048527,0.00107649,2639.7,2639.6,2.192187]
[1645359049726,0.00107649,2639.7,2639.6,2.19200745]
[1645359050928,0.00107649,2639.7,2639.6,14.04200745]
[1645359051197,0.00107649,2639.7,2639.6,15.04200745]
[1645359051384,0.00107649,2639.7,2639.6,15.98938745]
[1645359052389,0.54075431,2640.5,2639.8,11.55]
[1645359052587,0.72277891,2641.2,2640.3,14.38474623]
[1645359052785,0.54059301,2641.1,2640.6,0.94706]
[1645359052986,0.54059301,2641.0,2640.6,0.94706]
[1645359053184,0.54059301,2640.9,2640.6,0.94706]
[1645359053387,0.54059301,2640.8,2640.6,0.94706]
[1645359053589,0.54059301,2640.7,2640.4,1.0]
[1645359053788,0.72043663,2641.1,2640.1,15.33842]
[1645359053789,0.54059301,2640.6,2640.1,15.33842]
[1645359053987,0.54059301,2640.5,2640.4,1.0]
[1645359054192,0.54059301,2640.5,2640.4,12.55]
[1645359054387,0.54059301,2640.5,2640.4,1.0]
[1645359054588,0.54059301,2640.9,2640.4,1.97582583]
[1645359054788,0.54059301,2640.8,2640.4,0.97582583]
[1645359055026,0.54059301,2640.7,2640.4,0.97582583]
[1645359055227,0.54059301,2640.6,2640.4,0.97582583]
[1645359055427,0.54059301,2640.5,2640.4,0.97582583]
[1645359055827,0.72043663,2640.9,2640.4,0.97582583]
[1645359056033,0.54059301,2640.8,2640.4,4.77582583]
[1645359056231,0.54059301,2640.7,2640.4,4.77582583]
[1645359056428,0.54059301,2640.6,2640.5,1.0]
[1645359056630,0.54059301,2640.6,2640.4,4.77582583]
[1645359056939,0.54059301,2640.5,2640.4,4.77582583]
[1645359057138,1.26102964,2640.8,2640.4,3.8]
[1645359057529,0.54059301,2640.7,2640.4,3.8]
[1645359057730,0.54059301,2640.6,2640.4,3.8]
[1645359057934,0.54059301,2640.5,2640.4,3.8]
[1645359058132,0.54059301,2640.8,2640.4,3.8]
[1645359058333,0.54059301,2640.7,2640.4,3.8]
[1645359058534,0.54059301,2640.6,2640.4,3.8]
[1645359058800,0.54059301,2640.5,2640.4,3.8]
[1645359058987,0.54059301,2640.8,2640.4,3.8]
[1645359059391,1.26102964,2640.8,2640.4,3.8]
[1645359060390,1.26102964,2640.7,2640.4,3.8]
[1645359060592,0.54059301,2640.6,2640.4,3.8]
[1645359060792,0.54059301,2640.5,2640.4,3.8]
[1645359061192,1.26102964,2640.7,2640.4,3.8]
[1645359061490,0.54059301,2640.6,2640.4,3.8]
[1645359061689,0.54059301,2640.5,2640.4,3.8]
[1645359061888,0.72043663,2640.7,2640.4,3.8]
[1645359062290,0.54059301,2640.6,2640.4,3.8]
[1645359062532,0.54059301,2640.5,2640.4,3.8]
[1645359062733,1.26102964,2640.8,2640.4,2.08258441]
[1645359062935,0.54059301,2640.7,2640.4,2.08258441]
[1645359063137,0.72043663,2640.8,2640.4,2.08258441]
[1645359063138,0.54059301,2640.6,2640.4,2.08258441]
[1645359063336,0.96064871,2641.0,2640.4,2.08258441]
[1645359063337,0.54059301,2640.5,2640.4,2.08258441]
[1645359067392,0.54059301,2640.5,2640.4,13.63258441]
[1645359067589,0.54059301,2640.5,2640.4,2.08258441]
[1645359068190,0.54059301,2640.5,2640.4,13.63258441]
[1645359068791,0.54059301,2640.5,2640.4,3.08258441]
[1645359069393,0.00244278,2641.2,2640.5,0.94704]
[1645359069596,0.51052307,2641.2,2640.8,11.55]
[1645359069798,0.51052307,2641.2,2641.1,1.16188381]
[1645359069799,0.00244278,2641.2,2641.1,1.16188381]
[1645359070034,1.22852247,2641.4,2641.1,1.16188381]
[1645359070229,0.00244315,2641.2,2641.1,1.16188381]
[1645359070428,0.00244315,2641.2,2641.1,12.71188381]
[1645359070633,0.00244315,2641.2,2641.1,1.16188381]
[1645359070828,0.00244315,2641.2,2641.1,12.71188381]
[1645359071231,0.50808584,2641.4,2641.1,12.71188381]
[1645359071428,0.72043663,2641.5,2641.1,12.71188381]
[1645359071429,0.51052902,2641.3,2641.1,1.16188381]
[1645359071628,0.50808584,2641.2,2641.1,1.16188381]
[1645359072832,0.00233502,2641.3,2640.7,0.06530011]
[1645359073033,1.23085749,2641.3,2640.7,0.06530011]
[1645359073230,0.50808584,2641.2,2640.7,0.06530011]
[1645359073431,0.50808584,2641.1,2640.7,0.06530011]
[1645359073679,0.72277165,2641.3,2640.7,0.06530011]
[1645359073680,0.50808584,2641.0,2640.7,0.06530011]
[1645359073880,0.72043663,2641.3,2640.7,0.06530011]
[1645359073881,0.50808584,2640.9,2640.7,0.06530011]
[1645359074083,0.50808584,2640.8,2640.7,0.06530011]
[1645359074287,0.50808584,2641.0,2640.7,0.06530011]
[1645359074685,0.50808584,2641.0,2640.5,0.90640741]
[1645359076483,0.50808584,2640.9,2640.5,0.90640741]
[1645359076783,0.72277871,2641.2,2640.9,0.0074356]
[1645359076984,0.50766566,2641.1,2640.9,0.0074356]
[1645359077185,0.72043663,2641.2,2640.9,0.0074356]
[1645359077458,0.72043663,2641.2,2641.0,0.87677586]
[1645359077459,0.50766566,2641.1,2641.0,0.87677586]
[1645359077841,0.00234228,2641.2,2641.0,0.87677586]
[1645359078441,0.72043663,2641.3,2641.0,0.87677586]
[1645359078644,0.00234229,2641.2,2641.0,0.87677586]
[1645359078842,0.51000795,2641.2,2641.0,4.67677586]
[1645359079046,0.50766566,2641.1,2641.0,4.67677586]
[1645359079542,0.72043663,2641.4,2641.0,4.67677586]
[1645359079943,0.00234179,2641.2,2641.0,4.67677586]
[1645359080744,0.72043663,2641.3,2641.0,4.67677586]
[1645359081180,0.51000746,2641.2,2641.0,4.67677586]
[1645359081384,0.50766566,2641.1,2641.0,4.67677586]
[1645359081583,0.0023418,2641.2,2641.0,4.67677586]
[1645359081983,0.72043663,2641.3,2641.0,4.67677586]
[1645359082183,0.0023418,2641.2,2641.0,4.67677586]
[1645359082584,0.0023418,2641.2,2641.0,2.95977949]
[1645359083186,0.0023418,2641.2,2641.0,3.79883838]
[1645359083386,0.00234183,2641.2,2641.0,3.79883838]
[1645359083985,0.51000749,2641.2,2641.0,3.79883838]
[1645359084186,0.50766566,2641.1,2641.0,3.79883838]
[1645359084585,0.50766566,2641.1,2641.0,2.95977949]
[1645359085830,0.50766566,2641.1,2641.0,3.90566]
[1645359091898,0.50766566,2641.1,2641.0,2.95977949]
[1645359096586,2.07467734,2641.1,2641.0,2.95977949]
[1645359097582,1.35424071,2641.1,2641.0,2.95977949]
[1645359101741,0.50766566,2641.1,2641.0,2.95977949]
[1645359102832,0.50766566,2641.1,2641.0,1.24277779]
[1645359103435,0.50766566,2641.1,2641.0,2.09402159]
[1645359104197,0.7217717,2641.1,2641.0,2.09402159]
[1645359104399,0.50766566,2641.1,2641.0,2.09402159]
[1645359106500,0.50766566,2641.1,2641.0,1.24277779]
[1645359107001,1.46831437,2641.1,2641.0,1.24277779]
[1645359108132,2.35936173,2641.1,2641.0,1.24277779]
[1645359108533,0.50766566,2641.1,2641.0,1.24277779]
[1645359111685,1.46831437,2641.1,2641.0,1.24277779]
[1645359113991,0.50766566,2641.1,2641.0,1.24277779]
[1645359114388,1.23066114,2641.1,2641.0,1.24277779]
[1645359114585,0.50766566,2641.1,2641.0,1.24277779]
[1645359115030,0.7230217,2641.1,2641.0,1.24277779]
[1645359115231,0.7230217,2641.1,2641.0,2.36138708]
[1645359115636,1.23068736,2641.1,2641.0,2.36138708]
[1645359116230,0.50766566,2641.1,2641.0,2.36138708]
[1645359116429,1.23071213,2641.1,2641.0,2.36138708]
[1645359116633,0.72304647,2641.1,2641.0,2.36138708]
[1645359117532,0.50766566,2641.1,2641.0,1.24277779]
[1645359118809,0.50766566,2641.1,2641.0,13.48567779]
[1645359119001,0.50766566,2641.1,2641.0,15.42720252]
[1645359119214,6.566e-05,2641.1,2641.0,21.42289128]
[1645359119408,0.72307738,2641.7,2641.1,35.5]
[1645359119610,7.738e-05,2641.8,2641.3,1.8043052]
[1645359119799,7.738e-05,2641.8,2641.5,11.55]
[1645359120002,0.96064871,2642.2,2641.7,11.55]
[1645359120202,0.96064871,2642.4,2641.7,11.7392]
[1645359120402,0.96064871,2642.4,2641.9,11.55]
[1645359120598,0.96064871,2642.4,2641.9,11.7392]
[1645359120799,0.96064871,2642.4,2642.0,12.55]
[1645359120999,0.96064871,2642.4,2642.1,12.40944321]
[1645359121200,0.96064871,2642.5,2642.1,12.40944321]
[1645359121401,0.96064871,2642.5,2642.1,0.85944321]
[1645359121599,0.96064871,2642.4,2642.1,0.85944321]
[1645359121807,0.96064871,2642.5,2642.1,0.85944321]
[1645359122206,0.96064871,2642.5,2642.1,12.40944321]
[1645359122447,0.96064871,2642.5,2642.1,0.85944321]
[1645359122833,0.96064871,2642.7,2642.0,12.3770189]
[1645359123036,0.00241486,2642.4,2642.0,12.3770189]
[1645359123234,0.00241486,2642.4,2642.1,1.07615074]
[1645359123933,0.96064871,2642.8,2642.1,1.07615074]
[1645359124135,0.96064871,2642.8,2642.5,0.90851814]
[1645359124338,0.00241487,2642.4,2642.1,12.55]
[1645359124540,0.00241487,2642.4,2642.3,11.55]
[1645359124736,0.96064871,2643.1,2642.5,11.55]
[1645359124934,4.65934871,2643.2,2642.7,11.55]
[1645359125235,3.6987,2643.2,2642.7,11.55]
[1645359125435,3.6987,2643.2,2643.1,0.98329017]
[1645359125633,3.6487,2643.2,2643.1,0.98329017]
[1645359126284,2.11514871,2643.7,2643.1,0.98329017]
[1645359126484,1.1545,2643.7,2643.1,0.98329017]
[1645359126685,0.96064871,2643.8,2643.1,0.98329017]
[1645359126888,0.96064871,2643.7,2643.1,12.53329017]
[1645359127092,0.96064871,2643.9,2643.1,12.83329017]
[1645359127286,1.80512247,2643.9,2643.2,1.0]
[1645359127687,1.80512247,2643.9,2643.5,1.19349538]
[1645359127886,1.80512247,2643.9,2643.2,1.0]
[1645359128084,0.00190642,2643.7,2643.2,1.0]
[1645359128287,0.00190642,2643.7,2643.1,0.1905]
[1645359128486,0.00190642,2643.7,2643.1,0.4905]
[1645359128688,0.00190642,2643.7,2643.3,11.55]
[1645359128888,2.7008,2644.1,2643.5,11.55]
[1645359129089,1.1533,2644.3,2643.5,11.55]
[1645359129289,4.46064871,2644.5,2643.6,1.0]
[1645359129490,0.96064871,2644.5,2644.1,1.11042773]
[1645359129787,4.93637618,2644.6,2644.1,1.11042773]
[1645359129788,0.71450873,2644.3,2644.1,1.11042773]
[1645359130243,0.71450873,2644.3,2643.6,12.55]
[1645359130449,0.00256146,2644.4,2643.7,11.55]
[1645359131246,0.71450873,2644.5,2643.8,14.98481657]
[1645359131444,4.50340873,2644.6,2643.8,12.55]
[1645359131644,0.00256153,2644.2,2643.8,12.55]
[1645359131849,0.00256153,2644.2,2643.9,12.52731832]
[1645359132547,3.7889,2644.6,2643.9,12.52731832]
[1645359132745,0.0023249,2644.2,2643.9,12.52731832]
[1645359133788,3.7889,2644.6,2643.9,14.96685258]
[1645359133985,0.189,2645.2,2643.9,15.26685258]
[1645359133986,0.0023249,2644.2,2643.9,15.26685258]
[1645359134189,0.0023249,2644.2,2644.1,11.55]
[1645359134589,0.0023249,2644.2,2644.1,12.55]
[1645359134986,3.5838,2645.3,2644.1,12.55]
[1645359135187,0.00232488,2644.3,2644.1,14.9913253]
[1645359135387,0.00232488,2644.3,2644.1,12.85]
[1645359135593,0.00232488,2644.3,2644.2,12.68800594]
[1645359135790,0.00232488,2644.3,2644.2,13.89820594]
[1645359136188,7.0838,2645.3,2644.5,11.55]
[1645359136390,3.5838,2645.3,2644.7,11.55]
[1645359136592,0.00667833,2645.4,2644.8,0.3]
[1645359136792,0.00667833,2645.4,2644.9,11.55]
[1645359137191,0.00667833,2645.4,2645.3,0.95733702]
[1645359137455,0.90869787,2645.8,2644.9,11.55]
[1645359137636,0.00227761,2645.3,2644.9,11.55]
[1645359138439,0.90869787,2645.8,2645.2,0.85438002]
[1645359138840,0.0091091,2645.6,2645.2,12.40438002]
[1645359139042,0.0091091,2645.6,2645.2,13.64977002]
[1645359139238,0.0091091,2645.6,2645.4,11.55]
[1645359139639,3.5815,2646.0,2645.4,11.55]
[1645359140044,3.59060875,2646.0,2645.4,11.55]
[1645359140640,0.00910875,2646.0,2645.4,11.55]
[1645359140844,0.00910875,2646.0,2645.6,11.55]
[1645359141044,3.5,2647.0,2645.6,12.49525]
[1645359141294,5.2142,2647.1,2645.8,11.55]
[1645359141295,3.8831,2647.1,2645.8,11.55]
[1645359141491,3.8831,2647.1,2645.8,11.85]
[1645359141690,3.8831,2647.1,2647.0,1.10759735]
[1645359141893,1.18433357,2647.5,2646.6,11.55]
[1645359142091,3.6184,2647.4,2646.6,11.55]
[1645359142289,3.6184,2647.4,2646.7,1.0]
[1645359142488,3.6184,2647.4,2646.8,10.72015858]
[1645359142489,0.00170518,2647.2,2646.8,10.72015858]
[1645359142888,0.00170518,2647.2,2646.8,9.00684572]
[1645359143389,3.6184,2647.4,2646.8,9.00684572]
[1645359143589,0.00170518,2647.1,2646.8,9.00684572]
[1645359143790,0.00170518,2647.1,2647.0,1.19017193]
[1645359143991,0.00170518,2647.1,2646.7,1.0]
[1645359144394,0.00170518,2647.1,2646.6,0.6]
[1645359144395,0.00170518,2647.1,2646.6,1.54487]
[1645359144590,3.6184,2647.4,2646.6,0.93842319]
[1645359144790,0.00245916,2647.0,2646.7,11.55]
[1645359145043,0.00245916,2647.0,2646.8,1.13985278]
[1645359145842,2.8772,2648.0,2646.9,15.05]
[1645359146044,0.00245916,2647.0,2646.9,15.05]
[1645359146245,0.00245916,2647.0,2646.9,16.65]
[1645359146642,0.00245916,2647.0,2646.9,13.15]
[1645359146842,0.00983515,2647.4,2646.9,13.15]
[1645359147044,3.6272,2647.9,2646.9,13.15]
[1645359147242,0.0098351,2647.5,2647.1,11.55]
[1645359147444,0.0098351,2647.5,2647.2,0.94466]
[1645359147642,0.0098351,2647.5,2647.4,12.53421954]
[1645359148242,3.6272,2647.9,2647.8,0.85932852]
[1645359148694,0.00877657,2648.0,2647.8,0.85932852]
[1645359149293,3.6158,2648.6,2647.8,4.65932852]
[1645359149495,3.6158,2648.6,2647.8,3.8]
[1645359149496,5.0,2648.4,2647.8,3.8]
[1645359149706,0.00219438,2648.0,2647.8,3.8]
[1645359150692,0.87364275,2648.2,2647.8,3.8]
[1645359150895,0.00219438,2648.0,2647.8,15.35]
[1645359151093,0.00219438,2648.0,2647.8,3.8]
[1645359151292,0.00219438,2648.0,2647.8,15.35]
[1645359151695,3.6158,2648.6,2647.8,15.35]
[1645359151893,3.6158,2648.6,2648.3,0.89210939]
[1645359152193,3.6158,2648.6,2647.8,15.35]
[1645359152194,0.00896186,2648.4,2647.8,15.35]
[1645359152454,0.00896186,2648.4,2648.3,11.55]
[1645359153043,3.6158,2648.6,2648.3,11.55]
[1645359153239,0.00224071,2648.5,2648.4,0.86882864]
[1645359153441,0.00224071,2648.5,2647.8,3.8]
[1645359154241,3.6158,2648.6,2647.8,3.8]
[1645359154443,0.00224075,2648.3,2648.0,1.00813939]
[1645359154643,0.00224075,2648.3,2647.8,3.8]
[1645359155547,0.0016957,2648.2,2647.9,11.55]
[1645359156198,0.0016957,2648.2,2648.1,11.55]
[1645359156597,0.96950676,2648.5,2648.1,11.55]
[1645359156802,0.0016957,2648.3,2648.1,11.55]
[1645359157598,3.60288189,2648.6,2648.1,11.55]
[1645359158000,0.0016957,2648.3,2648.1,11.55]
[1645359159005,3.60288189,2648.6,2648.1,11.55]
[1645359161548,3.60288189,2648.6,2648.1,8.98052812]
[1645359161742,3.60288189,2648.6,2648.2,0.00981325]
[1645359161942,3.5001363,2648.6,2648.2,0.00981325]
[1645359162944,3.45204091,2648.6,2648.1,7.27772054]
[1645359164786,3.45204091,2648.6,2648.1,10.77772054]
[1645359164987,3.45204091,2648.6,2648.1,7.27772054]
[1645359165186,3.45204091,2648.6,2648.1,10.77772054]
[1645359165388,3.45204091,2648.6,2648.4,1.179853]
[1645359166490,3.45204091,2648.6,2647.9,0.1887]
[1645359166689,3.45204091,2648.6,2648.2,0.00944482]
[1645359166889,0.1887,2649.0,2648.2,0.00944482]
[1645359167090,0.007,2649.1,2648.2,0.00944482]
[1645359167747,0.007,2649.1,2648.2,11.55944482]
[1645359167945,0.00258297,2648.8,2648.2,11.55944482]
[1645359168146,0.00258297,2648.8,2648.4,1.0261676]
[1645359168750,0.007,2649.1,2648.4,1.0261676]
[1645359168947,0.00258298,2648.7,2648.4,1.0261676]
[1645359169546,0.00258298,2648.7,2648.4,4.5261676]
[1645359169746,0.00258298,2648.7,2648.4,1.0261676]
[1645359169947,0.007,2649.1,2648.4,1.0261676]
[1645359170148,0.00258299,2648.7,2648.4,1.0261676]
[1645359170847,0.00258299,2648.7,2648.4,12.5761676]
[1645359171049,0.05606949,2649.1,2648.6,11.55]
[1645359171050,0.007,2649.1,2648.6,11.55]
[1645359171293,0.007,2649.1,2648.7,1.0]
[1645359171487,0.05606949,2649.1,2648.7,4.5]
[1645359171687,0.05606949,2649.1,2648.7,15.05]
[1645359171889,0.05606949,2649.1,2648.8,12.47434654]
[1645359172098,3.6437,2649.6,2649.2,11.55]
[1645359172291,30.2796,2650.0,2649.3,1.0]
[1645359172488,30.2796,2650.0,2649.4,11.55]
[1645359172889,30.2796,2650.0,2649.6,1.00401598]
[1645359173494,30.2796,2650.0,2649.6,1.30401598]
[1645359173693,18.1278,2650.0,2649.7,11.55]
[1645359173899,0.0438999,2650.2,2649.9,11.55]
[1645359174090,0.0438999,2650.2,2650.1,11.55]
[1645359174291,9.99e-05,2650.2,2650.1,12.3385]
[1645359174491,0.007,2650.7,2650.1,13.15]
[1645359174693,0.007,2650.7,2650.1,14.09355]
[1645359174956,0.007,2650.7,2650.3,12.64042013]
[1645359175140,0.007,2650.7,2650.4,11.55]
[1645359175339,0.007,2650.7,2650.5,12.55]
[1645359175939,0.007,2650.7,2650.6,3.5]
[1645359176141,0.007,2650.7,2650.6,15.99336]
[1645359176341,0.0095791,2650.7,2650.6,17.59336]
[1645359176546,0.0095791,2650.7,2650.6,14.28186]
[1645359177147,5.1334,2652.1,2651.0,11.55]
[1645359177341,5.1334,2652.1,2651.3,11.55]
[1645359177542,0.30072679,2652.0,2651.3,11.55]
[1645359177743,0.04320018,2652.0,2651.3,11.55]
[1645359177943,0.04263176,2651.9,2651.3,11.55]
[1645359178144,0.04263176,2651.9,2651.2,11.55]
[1645359178343,5.1334,2652.1,2651.4,11.55]
[1645359178344,0.04206334,2651.8,2651.4,11.55]
[1645359178543,0.96797138,2651.8,2651.3,0.85992308]
[1645359178793,0.04149491,2651.7,2651.3,0.85992308]
[1645359178995,0.04149491,2651.7,2651.4,3.5]
[1645359179303,5.1334,2652.1,2651.6,0.0409]
[1645359179504,0.04717046,2652.8,2651.8,25.0]
[1645359179699,0.71450873,2652.5,2651.9,14.36902377]
[1645359179900,5.99154913,2652.7,2652.5,11.55]
[1645359179901,4.7732,2652.7,2652.5,11.55]
[1645359180094,0.04717046,2652.8,2652.6,12.49264]
[1645359180297,0.04717046,2652.8,2652.6,12.79264]
[1645359180491,7.046e-05,2652.8,2652.6,15.35]
[1645359180693,5.65652256,2653.6,2652.5,2.37363]
[1645359180694,4.95007046,2653.5,2652.7,11.55]
[1645359180896,4.7732,2653.6,2652.7,12.5956183]
[1645359181094,4.7732,2653.6,2652.7,11.55]
[1645359181291,4.7732,2653.6,2652.9,11.55]
[1645359181491,4.7732,2653.6,2652.9,11.85]
[1645359181691,4.7732,2653.6,2653.1,11.55]
[1645359181896,4.6232,2653.6,2653.5,12.72425367]
[1645359182295,0.03545563,2653.8,2653.5,2.17425367]
[1645359182553,0.03545563,2653.8,2653.7,0.0456183]
[1645359182753,0.0249014,2654.2,2653.8,11.85]
[1645359182953,1.4e-06,2654.2,2653.9,13.38670911]
[1645359183156,1.4e-06,2654.2,2653.9,10.07490911]
[1645359183351,1.4e-06,2654.2,2654.0,1.0]
[1645359183553,0.05,2655.0,2654.2,11.55]
[1645359183751,0.05,2655.0,2654.3,11.7382]
[1645359183954,0.05,2655.0,2654.0,1.13687129]
[1645359183955,1.05197561,2654.6,2654.0,1.13687129]
[1645359184150,1.05197561,2654.6,2653.7,0.1883]
[1645359184151,6.05197561,2654.6,2653.7,0.1883]
[1645359184351,6.05197561,2654.6,2653.3,3.5]
[1645359184555,1.05197561,2654.6,2653.1,3.5]
[1645359184848,1.05197561,2654.6,2652.8,3.82620594]
[1645359185049,0.93236842,2653.8,2652.8,4.76881594]
[1645359185249,0.93236842,2653.8,2652.8,0.32620594]
[1645359185448,0.93236842,2653.8,2652.8,0.13800594]
[1645359185653,1.23236842,2653.8,2652.8,0.13800594]
[1645359186051,0.00258442,2653.9,2653.2,0.00251685]
[1645359186312,0.00258442,2653.9,2653.5,3.8]
[1645359186511,0.00258442,2653.9,2653.2,0.00251685]
[1645359187112,0.00258442,2653.9,2652.8,3.63800594]
[1645359187113,1.08590529,2654.4,2653.7,3.8]
[1645359187311,0.00258459,2653.9,2653.7,3.8]
[1645359187608,0.00258459,2653.9,2653.4,0.19091662]
[1645359188012,0.00258459,2653.9,2653.4,3.69091662]
[1645359188209,1.08590529,2654.4,2653.4,0.1884]
[1645359188410,1.08590529,2654.4,2653.5,0.00251652]
[1645359188411,0.00258466,2653.9,2653.5,0.00251652]
[1645359189210,0.00258466,2653.9,2653.8,1.14273784]
[1645359189410,1.08590529,2654.4,2653.8,1.14273784]
[1645359189615,0.00258469,2653.9,2653.8,1.14273784]
[1645359190043,0.00258469,2653.9,2653.6,0.00251648]
[1645359190442,0.00258469,2653.9,2653.2,3.8]
[1645359190644,1.08590529,2654.4,2653.3,15.05]
[1645359190847,0.00183904,2653.9,2653.6,3.8]
[1645359191043,0.00183904,2653.9,2653.7,1.13129421]
[1645359191245,0.00183904,2653.9,2653.4,3.8]
[1645359191643,1.08590529,2654.4,2653.5,0.1884]
[1645359192041,0.00183898,2653.9,2653.5,0.01022192]
[1645359192642,0.00183898,2653.9,2653.6,11.55]
[1645359192845,3.2705,2654.5,2653.6,11.55]
[1645359193688,3.2705,2654.5,2654.1,1.0182892]
[1645359193889,1.15115288,2654.6,2654.2,11.55]
[1645359194096,1.15115288,2654.6,2653.7,3.8]
[1645359194293,1.15115288,2654.6,2653.6,3.9882]
[1645359194490,1.15115288,2654.6,2653.6,0.1882]
[1645359194893,1.15115288,2654.6,2653.6,11.7382]
[1645359195194,3.0775,2654.9,2654.5,11.55]
[1645359195396,0.05,2655.0,2654.5,11.55]
[1645359196290,0.05,2655.0,2654.8,12.68208322]
[1645359196493,0.05,2655.0,2654.8,11.55]
[1645359197292,0.05,2655.0,2654.9,11.55]
[1645359197543,0.05,2655.0,2654.9,12.69857962]
[1645359198638,0.05,2655.0,2654.5,0.1882]
[1645359198639,0.05,2655.0,2654.5,11.55]
[1645359198836,0.05,2655.0,2654.5,15.05]
[1645359199038,0.05,2655.0,2654.5,11.55]
[1645359199538,0.05,2655.0,2654.4,7.6]
[1645359199539,0.05,2655.0,2654.7,12.46955212]
[1645359199736,0.05,2655.0,2654.9,11.55]
[1645359199936,0.05,2655.0,2654.7,0.91955212]
[1645359200144,0.05,2655.0,2654.7,12.46955212]
[1645359200338,0.05183241,2655.0,2654.7,16.26955212]
[1645359200538,0.05183241,2655.0,2654.8,15.35]
[1645359200738,0.05183241,2655.0,2654.7,0.91955212]
[1645359201208,0.05,2655.0,2654.8,11.55]
[1645359201596,0.05183241,2655.0,2654.4,3.8]
[1645359201798,0.05183241,2655.0,2654.9,0.00982177]
[1645359202402,0.05,2655.0,2654.9,0.00982177]
[1645359202603,1.25,2655.0,2654.9,0.00982177]
[1645359202807,1.25,2655.0,2654.4,3.8]
[1645359202808,0.4284,2655.0,2654.4,3.16815581]
[1645359203002,0.4284,2655.0,2654.4,2.48741814]
[1645359203003,1.18678029,2654.5,2654.4,2.48741814]
[1645359203204,0.05,2655.0,2654.4,2.48741814]
[1645359203411,0.30247526,2655.1,2654.4,2.48741814]
[1645359203601,0.00247526,2655.1,2654.4,2.48741814]
[1645359203902,0.00247533,2654.8,2654.4,2.48741814]
[1645359204402,0.9892866,2654.5,2654.4,2.48741814]
[1645359205856,8.0,2654.4,2653.7,0.00247626]
[1645359206053,1.2,2654.0,2652.9,0.1882]
[1645359206251,1.2,2654.0,2652.8,0.13800594]
[1645359206450,1.2,2654.0,2653.7,0.00247626]
[1645359206850,1.5,2654.0,2653.7,0.00247626]
[1645359207352,1.18777435,2653.1,2652.8,0.13800594]
[1645359207549,1.5,2654.0,2653.7,0.00199592]
[1645359207550,1.2,2653.8,2653.7,0.00199592]
[1645359207754,1.5,2653.8,2653.7,0.00199592]
[1645359207954,4.6546,2653.8,2653.7,0.00199592]
[1645359208151,8.1546,2653.8,2653.7,0.00199592]
[1645359208554,8.1546,2653.8,2652.0,11.55]
[1645359208555,0.92998953,2652.9,2652.3,1.10032936]
[1645359208797,8.1546,2653.8,2653.7,3.8]
[1645359208995,1.5,2653.8,2653.7,3.8]
[1645359209197,0.3,2653.8,2653.7,3.8]
[1645359209396,0.3,2653.8,2653.6,9.596e-05]
[1645359209397,25.5,2653.8,2653.6,9.596e-05]
[1645359209603,36.3784,2653.7,2651.7,0.26918093]
[1645359209805,1.2,2653.1,2651.4,0.1884]
[1645359209997,1.2,2652.6,2651.4,0.1884]
[1645359210197,5.6557,2652.9,2651.4,0.1884]
[1645359210403,5.6557,2652.9,2652.2,12.59244641]
[1645359210600,2.8597,2652.9,2652.2,1.04244641]
[1645359211196,2.8597,2652.9,2651.6,3.9884]
[1645359211197,1.2,2652.9,2651.6,3.9884]